[Event "Titled Tuesday Blitz March 28 Late 2023"]
[White "Mortazavi, Ali"]
[Black "Flores, Diego"]
[WhiteFideId "401323"]
[BlackFideId "108049"]
[WhiteElo "2339"]
[BlackElo "2606"]
[Result "0-1"]
[Round "07"]
[TimeControl "180+2"]
[Date "2023.03.28"]
[WhiteClock "0:00:15"]
[BlackClock "0:00:24"]

1. Nf3 {[%clk 0:03:00]}  g6 {[%clk 0:02:52]} 2. e4 {[%clk 0:03:00]}  Bg7 {[%clk 0:02:51]} 3. d4 {[%clk 0:03:00]}  d6 {[%clk 0:02:52]} 4. Nc3 {[%clk 0:03:00]}  Nf6 {[%clk 0:02:52]} 5. Be3 {[%clk 0:03:01]}  c6 {[%clk 0:02:50]} 6. Qd2 {[%clk 0:02:56]}  Nbd7 {[%clk 0:02:47]} 7. Bh6 {[%clk 0:02:54]}  Bxh6 {[%clk 0:02:45]} 8. Qxh6 {[%clk 0:02:53]}  e5 {[%clk 0:02:42]} 9. a4 {[%clk 0:02:28]}  Qe7 {[%clk 0:02:41]} 10. dxe5 {[%clk 0:02:28]}  Nxe5 {[%clk 0:02:33]} 11. Nxe5 {[%clk 0:02:20]}  dxe5 {[%clk 0:02:31]} 12. Bc4 {[%clk 0:02:17]}  Be6 {[%clk 0:02:30]} 13. Bxe6 {[%clk 0:02:14]}  Qxe6 {[%clk 0:02:31]} 14. O-O {[%clk 0:02:15]}  O-O-O {[%clk 0:02:28]} 15. a5 {[%clk 0:02:10]}  Rd4 {[%clk 0:02:28]} 16. a6 {[%clk 0:02:10]}  b6 {[%clk 0:02:27]} 17. Rfe1 {[%clk 0:01:54]}  Rhd8 {[%clk 0:02:21]} 18. h3 {[%clk 0:01:54]}  Nh5 {[%clk 0:02:05]} 19. Qxh7 {[%clk 0:01:32]}  Qf6 {[%clk 0:02:05]} 20. Qh6 {[%clk 0:01:25]}  Nf4 {[%clk 0:02:05]} 21. h4 {[%clk 0:01:19]}  Rd2 {[%clk 0:01:49]} 22. Rf1 {[%clk 0:01:02]}  Rxc2 {[%clk 0:01:49]} 23. Rad1 {[%clk 0:00:56]}  Rh8 {[%clk 0:01:47]} 24. Qg5 {[%clk 0:00:54]}  Qxg5 {[%clk 0:01:44]} 25. hxg5 {[%clk 0:00:55]}  Rxc3 {[%clk 0:01:44]} 26. g3 {[%clk 0:00:53]}  Ne2+ {[%clk 0:01:32]} 27. Kg2 {[%clk 0:00:53]}  Rc2 {[%clk 0:01:22]} 28. Rd6 {[%clk 0:00:53]}  Rd8 {[%clk 0:01:11]} 29. Rf6 {[%clk 0:00:52]}  Rd7 {[%clk 0:01:11]} 30. Rh1 {[%clk 0:00:53]}  Kc7 {[%clk 0:00:50]} 31. Rh8 {[%clk 0:00:51]}  b5 {[%clk 0:00:51]} 32. Rh7 {[%clk 0:00:33]}  Rxb2 {[%clk 0:00:50]} 33. Rfxf7 {[%clk 0:00:29]}  Rxf7 {[%clk 0:00:50]} 34. Rxf7+ {[%clk 0:00:30]}  Kb6 {[%clk 0:00:50]} 35. Rf6 {[%clk 0:00:31]}  Nc3 {[%clk 0:00:49]} 36. Rxg6 {[%clk 0:00:27]}  Nxe4 {[%clk 0:00:49]} 37. Kf3 {[%clk 0:00:27]}  Nxf2 {[%clk 0:00:35]} 38. Re6 {[%clk 0:00:28]}  e4+ {[%clk 0:00:35]} 39. Kf4 {[%clk 0:00:25]}  Nd3+ {[%clk 0:00:29]} 40. Ke3 {[%clk 0:00:23]}  Nc5 {[%clk 0:00:28]} 41. Rf6 {[%clk 0:00:20]}  Rb3+ {[%clk 0:00:27]} 42. Kf4 {[%clk 0:00:18]}  Rf3+ {[%clk 0:00:24]} 43. Ke5 {[%clk 0:00:15]}  Nd7+ {[%clk 0:00:24]} 0-1


[Site "https://www.chess.com"]

[Event "Titled Tuesday Blitz March 28 Late 2023"]
[White "Goltsev, Dmitry"]
[Black "Mekhane, Adam"]
[WhiteFideId "24176710"]
[BlackFideId "36050601"]
[WhiteElo "2336"]
[BlackElo "2177"]
[Result "0-1"]
[Round "07"]
[TimeControl "180+2"]
[Date "2023.03.28"]
[WhiteClock "0:00:07"]
[BlackClock "0:00:12"]

1. e4 {[%clk 0:02:57]}  e5 {[%clk 0:02:58]} 2. Nf3 {[%clk 0:02:57]}  Nc6 {[%clk 0:02:59]} 3. Bb5 {[%clk 0:02:57]}  a6 {[%clk 0:02:56]} 4. Ba4 {[%clk 0:02:57]}  Nf6 {[%clk 0:02:56]} 5. O-O {[%clk 0:02:57]}  Be7 {[%clk 0:02:54]} 6. Re1 {[%clk 0:02:57]}  b5 {[%clk 0:02:52]} 7. Bb3 {[%clk 0:02:56]}  O-O {[%clk 0:02:53]} 8. d3 {[%clk 0:02:52]}  d6 {[%clk 0:02:47]} 9. c3 {[%clk 0:02:49]}  Bb7 {[%clk 0:02:43]} 10. Nbd2 {[%clk 0:02:49]}  Na5 {[%clk 0:02:40]} 11. Bc2 {[%clk 0:02:48]}  c5 {[%clk 0:02:41]} 12. Nf1 {[%clk 0:02:48]}  Re8 {[%clk 0:02:39]} 13. h3 {[%clk 0:02:47]}  Bf8 {[%clk 0:02:39]} 14. g4 {[%clk 0:02:47]}  g6 {[%clk 0:02:37]} 15. Ng3 {[%clk 0:02:47]}  Bg7 {[%clk 0:02:37]} 16. Bg5 {[%clk 0:02:44]}  h6 {[%clk 0:02:36]} 17. Be3 {[%clk 0:02:43]}  Nc6 {[%clk 0:02:35]} 18. Qd2 {[%clk 0:02:43]}  Kh7 {[%clk 0:02:29]} 19. Nh4 {[%clk 0:02:40]}  d5 {[%clk 0:02:22]} 20. Nhf5 {[%clk 0:02:09]}  gxf5 {[%clk 0:01:36]} 21. Nxf5 {[%clk 0:02:10]}  Ng8 {[%clk 0:01:36]} 22. exd5 {[%clk 0:02:07]}  Qxd5 {[%clk 0:01:31]} 23. d4 {[%clk 0:01:55]}  Kh8 {[%clk 0:01:17]} 24. Be4 {[%clk 0:01:35]}  Qxe4 {[%clk 0:00:59]} 25. Nd6 {[%clk 0:00:57]}  Nxd4 {[%clk 0:00:43]} 26. Nxe4 {[%clk 0:00:32]}  Nf3+ {[%clk 0:00:43]} 27. Kf1 {[%clk 0:00:33]}  Nxd2+ {[%clk 0:00:43]} 28. Nxd2 {[%clk 0:00:34]}  c4 {[%clk 0:00:40]} 29. a4 {[%clk 0:00:31]}  Nf6 {[%clk 0:00:39]} 30. f3 {[%clk 0:00:27]}  Nd5 {[%clk 0:00:38]} 31. Bf2 {[%clk 0:00:17]}  Nf4 {[%clk 0:00:37]} 32. Red1 {[%clk 0:00:17]}  Nd3 {[%clk 0:00:35]} 33. Ra2 {[%clk 0:00:12]}  Bf6 {[%clk 0:00:31]} 34. Be3 {[%clk 0:00:09]}  Bg5 {[%clk 0:00:30]} 35. Ke2 {[%clk 0:00:09]}  Bf4 {[%clk 0:00:25]} 36. Rda1 {[%clk 0:00:08]}  Kg7 {[%clk 0:00:20]} 37. axb5 {[%clk 0:00:08]}  axb5 {[%clk 0:00:20]} 38. Ra7 {[%clk 0:00:09]}  Rxa7 {[%clk 0:00:19]} 39. Rxa7 {[%clk 0:00:09]}  Nc1+ {[%clk 0:00:17]} 40. Kf2 {[%clk 0:00:09]}  Nd3+ {[%clk 0:00:17]} 41. Ke2 {[%clk 0:00:09]}  Bd5 {[%clk 0:00:16]} 42. Rd7 {[%clk 0:00:08]}  Bc6 {[%clk 0:00:16]} 43. Rc7 {[%clk 0:00:08]}  Bd5 {[%clk 0:00:16]} 44. Rd7 {[%clk 0:00:08]}  Be6 {[%clk 0:00:15]} 45. Rb7 {[%clk 0:00:08]}  Ra8 {[%clk 0:00:12]} 46. Rxb5 {[%clk 0:00:07]}  Ra1 {[%clk 0:00:12]} 47. Bxf4 {[%clk 0:00:07]}  Re1# {[%clk 0:00:12]} 0-1


[Site "https://www.chess.com"]

[Event "Titled Tuesday Blitz March 28 Late 2023"]
[White "Makarian, Rudik"]
[Black "Silva, Pedro Gil Ferreira Da"]
[WhiteFideId "44105681"]
[BlackFideId "1946102"]
[WhiteElo "2436"]
[BlackElo "2255"]
[Result "1-0"]
[Round "07"]
[TimeControl "180+2"]
[Date "2023.03.28"]
[WhiteClock "0:00:52"]
[BlackClock "0:01:06"]

1. e4 {[%clk 0:03:00]}  c6 {[%clk 0:02:59]} 2. Nf3 {[%clk 0:02:57]}  d5 {[%clk 0:02:59]} 3. d3 {[%clk 0:02:56]}  g6 {[%clk 0:02:57]} 4. Be2 {[%clk 0:02:53]}  Bg7 {[%clk 0:02:57]} 5. O-O {[%clk 0:02:53]}  Nf6 {[%clk 0:02:53]} 6. Nbd2 {[%clk 0:02:51]}  O-O {[%clk 0:02:53]} 7. Re1 {[%clk 0:02:52]}  c5 {[%clk 0:02:50]} 8. Bf1 {[%clk 0:02:49]}  Nc6 {[%clk 0:02:49]} 9. c3 {[%clk 0:02:46]}  b6 {[%clk 0:02:48]} 10. h3 {[%clk 0:02:41]}  Bb7 {[%clk 0:02:48]} 11. e5 {[%clk 0:02:40]}  Nh5 {[%clk 0:02:30]} 12. d4 {[%clk 0:02:39]}  f6 {[%clk 0:02:27]} 13. exf6 {[%clk 0:02:36]}  Nxf6 {[%clk 0:02:28]} 14. Bb5 {[%clk 0:02:32]}  Qd6 {[%clk 0:02:24]} 15. Bxc6 {[%clk 0:02:31]}  Bxc6 {[%clk 0:02:25]} 16. Ne5 {[%clk 0:02:31]}  Bb7 {[%clk 0:02:24]} 17. Qe2 {[%clk 0:02:27]}  Ne4 {[%clk 0:02:19]} 18. Nxe4 {[%clk 0:02:25]}  dxe4 {[%clk 0:02:20]} 19. Nc4 {[%clk 0:02:25]}  Qd5 {[%clk 0:02:19]} 20. Ne3 {[%clk 0:02:21]}  Qd6 {[%clk 0:02:17]} 21. dxc5 {[%clk 0:02:21]}  Qxc5 {[%clk 0:02:18]} 22. Bd2 {[%clk 0:02:17]}  Rad8 {[%clk 0:02:18]} 23. Red1 {[%clk 0:02:13]}  Rd3 {[%clk 0:02:18]} 24. Be1 {[%clk 0:02:13]}  Rfd8 {[%clk 0:02:16]} 25. Rxd3 {[%clk 0:02:10]}  exd3 {[%clk 0:02:17]} 26. Qd1 {[%clk 0:02:04]}  Bh6 {[%clk 0:02:15]} 27. Bd2 {[%clk 0:02:03]}  Bxe3 {[%clk 0:02:04]} 28. Bxe3 {[%clk 0:02:04]}  Qd5 {[%clk 0:02:05]} 29. Qg4 {[%clk 0:02:03]}  Qe4 {[%clk 0:02:01]} 30. Qxe4 {[%clk 0:02:02]}  Bxe4 {[%clk 0:02:02]} 31. f3 {[%clk 0:01:59]}  Bd5 {[%clk 0:01:48]} 32. Kf2 {[%clk 0:01:56]}  Kf7 {[%clk 0:01:47]} 33. Bd2 {[%clk 0:01:55]}  Ke6 {[%clk 0:01:47]} 34. Ke3 {[%clk 0:01:55]}  h5 {[%clk 0:01:43]} 35. h4 {[%clk 0:01:55]}  Kf6 {[%clk 0:01:43]} 36. b3 {[%clk 0:01:49]}  e5 {[%clk 0:01:41]} 37. c4 {[%clk 0:01:48]}  Be6 {[%clk 0:01:40]} 38. Bc3 {[%clk 0:01:46]}  Bf5 {[%clk 0:01:38]} 39. Kd2 {[%clk 0:01:41]}  g5 {[%clk 0:01:32]} 40. hxg5+ {[%clk 0:01:40]}  Kxg5 {[%clk 0:01:33]} 41. Bxe5 {[%clk 0:01:40]}  Re8 {[%clk 0:01:34]} 42. Re1 {[%clk 0:01:36]}  Re6 {[%clk 0:01:29]} 43. b4 {[%clk 0:01:29]}  h4 {[%clk 0:01:27]} 44. b5 {[%clk 0:01:07]}  Rg6 {[%clk 0:01:16]} 45. Bb8 {[%clk 0:01:01]}  Kh5 {[%clk 0:01:16]} 46. g4+ {[%clk 0:00:53]}  hxg3 {[%clk 0:01:14]} 47. Rh1+ {[%clk 0:00:53]}  Kg5 {[%clk 0:01:14]} 48. Bxg3 {[%clk 0:00:53]}  Re6 {[%clk 0:01:13]} 49. Rh2 {[%clk 0:00:52]}  Re7 {[%clk 0:01:06]} 50. Bh4+ {[%clk 0:00:52]} 1-0


[Site "https://www.chess.com"]

[Event "Titled Tuesday Blitz March 28 Late 2023"]
[White "Kavutskiy, Konstantin"]
[Black "Baskakov, Egor"]
[WhiteFideId "2026384"]
[BlackFideId "24197866"]
[WhiteElo "2369"]
[BlackElo "2212"]
[Result "1/2-1/2"]
[Round "07"]
[TimeControl "180+2"]
[Date "2023.03.28"]
[WhiteClock "0:00:06"]
[BlackClock "0:00:06"]

1. d4 {[%clk 0:03:00]}  Nf6 {[%clk 0:02:59]} 2. Bg5 {[%clk 0:03:01]}  e6 {[%clk 0:02:59]} 3. Nd2 {[%clk 0:03:00]}  d5 {[%clk 0:02:58]} 4. e3 {[%clk 0:03:00]}  Be7 {[%clk 0:02:58]} 5. Bd3 {[%clk 0:03:00]}  h6 {[%clk 0:02:58]} 6. Bh4 {[%clk 0:03:00]}  c5 {[%clk 0:02:57]} 7. c3 {[%clk 0:03:01]}  Nc6 {[%clk 0:02:55]} 8. Ngf3 {[%clk 0:03:01]}  Bd7 {[%clk 0:02:52]} 9. O-O {[%clk 0:02:56]}  O-O {[%clk 0:02:52]} 10. Ne5 {[%clk 0:02:53]}  Nxe5 {[%clk 0:02:50]} 11. dxe5 {[%clk 0:02:54]}  Ne8 {[%clk 0:02:47]} 12. Bxe7 {[%clk 0:02:54]}  Qxe7 {[%clk 0:02:48]} 13. f4 {[%clk 0:02:54]}  f6 {[%clk 0:02:47]} 14. Nf3 {[%clk 0:02:52]}  f5 {[%clk 0:02:46]} 15. c4 {[%clk 0:02:46]}  Bc6 {[%clk 0:02:46]} 16. Qc2 {[%clk 0:02:38]}  Nc7 {[%clk 0:02:41]} 17. Rac1 {[%clk 0:02:35]}  b6 {[%clk 0:02:40]} 18. Rfd1 {[%clk 0:02:32]}  Rad8 {[%clk 0:02:39]} 19. Be2 {[%clk 0:02:26]}  Bb7 {[%clk 0:02:34]} 20. a3 {[%clk 0:02:25]}  Ba6 {[%clk 0:02:22]} 21. b3 {[%clk 0:02:14]}  dxc4 {[%clk 0:02:19]} 22. bxc4 {[%clk 0:02:13]}  Rxd1+ {[%clk 0:02:12]} 23. Rxd1 {[%clk 0:02:12]}  Rd8 {[%clk 0:02:13]} 24. Kf2 {[%clk 0:02:09]}  g5 {[%clk 0:02:07]} 25. g3 {[%clk 0:02:05]}  Kg7 {[%clk 0:01:59]} 26. Qc3 {[%clk 0:01:58]}  Rxd1 {[%clk 0:01:56]} 27. Bxd1 {[%clk 0:01:59]}  g4 {[%clk 0:01:56]} 28. Nd2 {[%clk 0:01:54]}  Bb7 {[%clk 0:01:57]} 29. Bc2 {[%clk 0:01:48]}  Qd7 {[%clk 0:01:48]} 30. e4 {[%clk 0:01:47]}  Kf7 {[%clk 0:01:42]} 31. Ke3 {[%clk 0:01:20]}  h5 {[%clk 0:01:33]} 32. Qd3 {[%clk 0:01:18]}  Qxd3+ {[%clk 0:01:32]} 33. Bxd3 {[%clk 0:01:19]}  Bc8 {[%clk 0:01:30]} 34. Nf1 {[%clk 0:01:14]}  Ke7 {[%clk 0:01:23]} 35. Kd2 {[%clk 0:01:13]}  Bd7 {[%clk 0:01:19]} 36. Ne3 {[%clk 0:01:13]}  fxe4 {[%clk 0:01:17]} 37. Bxe4 {[%clk 0:01:14]}  Be8 {[%clk 0:01:15]} 38. Ng2 {[%clk 0:01:02]}  b5 {[%clk 0:01:00]} 39. Kc3 {[%clk 0:01:01]}  a5 {[%clk 0:00:59]} 40. cxb5 {[%clk 0:00:51]}  Nxb5+ {[%clk 0:01:00]} 41. Kb3 {[%clk 0:00:51]}  c4+ {[%clk 0:00:53]} 42. Kxc4 {[%clk 0:00:47]}  Nxa3+ {[%clk 0:00:53]} 43. Kb3 {[%clk 0:00:44]}  Nb5 {[%clk 0:00:50]} 44. Nh4 {[%clk 0:00:40]}  a4+ {[%clk 0:00:43]} 45. Kb4 {[%clk 0:00:40]}  a3 {[%clk 0:00:43]} 46. Kb3 {[%clk 0:00:40]}  a2 {[%clk 0:00:37]} 47. Kb2 {[%clk 0:00:36]}  Nc3 {[%clk 0:00:30]} 48. Bc2 {[%clk 0:00:24]}  Bc6 {[%clk 0:00:20]} 49. Bb3 {[%clk 0:00:24]}  Bd5 {[%clk 0:00:18]} 50. Bxd5 {[%clk 0:00:24]}  Nxd5 {[%clk 0:00:14]} 51. Kxa2 {[%clk 0:00:24]}  Ne3 {[%clk 0:00:15]} 52. Kb3 {[%clk 0:00:16]}  Nf1 {[%clk 0:00:15]} 53. f5 {[%clk 0:00:17]}  Nxh2 {[%clk 0:00:12]} 54. Ng6+ {[%clk 0:00:09]}  Kf7 {[%clk 0:00:13]} 55. Nf4 {[%clk 0:00:08]}  exf5 {[%clk 0:00:10]} 56. Kc4 {[%clk 0:00:06]}  Nf1 {[%clk 0:00:09]} 57. Nxh5 {[%clk 0:00:06]}  Ke6 {[%clk 0:00:09]} 58. Kd4 {[%clk 0:00:06]}  Ke7 {[%clk 0:00:04]} 59. Kd5 {[%clk 0:00:06]}  Ne3+ {[%clk 0:00:04]} 60. Kd4 {[%clk 0:00:06]}  Nf1 {[%clk 0:00:05]} 61. Kd5 {[%clk 0:00:06]}  Ne3+ {[%clk 0:00:05]} 62. Kd4 {[%clk 0:00:06]}  Nf1 {[%clk 0:00:06]} 1/2-1/2


[Site "https://www.chess.com"]

[Event "Titled Tuesday Blitz March 28 Late 2023"]
[White "Fiorito, Francisco"]
[Black "Ibarra Jerez, Jose Carlos"]
[WhiteFideId "180165"]
[BlackFideId "2226332"]
[WhiteElo "2341"]
[BlackElo "2638"]
[Result "0-1"]
[Round "07"]
[TimeControl "180+2"]
[Date "2023.03.28"]
[WhiteClock "0:01:21"]
[BlackClock "0:01:55"]

1. d4 {[%clk 0:03:00]}  Nf6 {[%clk 0:02:56]} 2. Nc3 {[%clk 0:03:00]}  d5 {[%clk 0:02:53]} 3. Bf4 {[%clk 0:03:00]}  c5 {[%clk 0:02:53]} 4. e3 {[%clk 0:03:00]}  cxd4 {[%clk 0:02:52]} 5. exd4 {[%clk 0:03:01]}  Bg4 {[%clk 0:02:52]} 6. f3 {[%clk 0:03:00]}  Bd7 {[%clk 0:02:51]} 7. Nb5 {[%clk 0:03:01]}  Bxb5 {[%clk 0:02:51]} 8. Bxb5+ {[%clk 0:03:00]}  Nc6 {[%clk 0:02:52]} 9. c3 {[%clk 0:03:00]}  e6 {[%clk 0:02:50]} 10. g4 {[%clk 0:02:59]}  Bd6 {[%clk 0:02:49]} 11. Ne2 {[%clk 0:02:52]}  O-O {[%clk 0:02:48]} 12. Qd2 {[%clk 0:02:45]}  Rc8 {[%clk 0:02:46]} 13. h4 {[%clk 0:02:44]}  e5 {[%clk 0:02:46]} 14. Bxc6 {[%clk 0:02:30]}  exf4 {[%clk 0:02:46]} 15. Bxb7 {[%clk 0:02:30]}  Rb8 {[%clk 0:02:46]} 16. Ba6 {[%clk 0:02:31]}  Qb6 {[%clk 0:02:46]} 17. Bd3 {[%clk 0:02:28]}  Qxb2 {[%clk 0:02:46]} 18. Rb1 {[%clk 0:02:18]}  Qa3 {[%clk 0:02:34]} 19. Kf2 {[%clk 0:02:17]}  Rbe8 {[%clk 0:02:28]} 20. h5 {[%clk 0:01:59]}  Ne4+ {[%clk 0:02:25]} 21. fxe4 {[%clk 0:01:53]}  dxe4 {[%clk 0:02:26]} 22. Bxe4 {[%clk 0:01:50]}  Rxe4 {[%clk 0:02:25]} 23. Rh3 {[%clk 0:01:47]}  Rfe8 {[%clk 0:02:23]} 24. Ng1 {[%clk 0:01:43]}  Re3 {[%clk 0:02:19]} 25. Rf3 {[%clk 0:01:41]}  Qa6 {[%clk 0:02:16]} 26. Rd1 {[%clk 0:01:27]}  Qc8 {[%clk 0:02:06]} 27. g5 {[%clk 0:01:22]}  Qg4 {[%clk 0:02:05]} 28. g6 {[%clk 0:01:20]}  Rxf3+ {[%clk 0:01:56]} 29. Nxf3 {[%clk 0:01:20]}  Qg3+ {[%clk 0:01:56]} 30. Kf1 {[%clk 0:01:21]}  Qxf3+ {[%clk 0:01:55]} 0-1


[Site "https://www.chess.com"]

[Event "Titled Tuesday Blitz March 28 Late 2023"]
[White "Nazari, Arad"]
[Black "Koellner, Ruben Gideon"]
[WhiteFideId "12577324"]
[BlackFideId "12993093"]
[WhiteElo "2313"]
[BlackElo "2303"]
[Result "0-1"]
[Round "07"]
[TimeControl "180+2"]
[Date "2023.03.28"]
[WhiteClock "0:00:02"]
[BlackClock "0:01:18"]

1. e4 {[%clk 0:03:00]}  d6 {[%clk 0:03:00]} 2. d4 {[%clk 0:02:58]}  Nf6 {[%clk 0:02:59]} 3. Nc3 {[%clk 0:02:58]}  e5 {[%clk 0:02:58]} 4. dxe5 {[%clk 0:02:54]}  dxe5 {[%clk 0:02:59]} 5. Qxd8+ {[%clk 0:02:54]}  Kxd8 {[%clk 0:03:00]} 6. Bg5 {[%clk 0:02:53]}  Be6 {[%clk 0:03:00]} 7. O-O-O+ {[%clk 0:02:53]}  Nd7 {[%clk 0:03:01]} 8. f3 {[%clk 0:02:53]}  Bd6 {[%clk 0:03:00]} 9. a3 {[%clk 0:02:51]}  Ke7 {[%clk 0:03:00]} 10. Nh3 {[%clk 0:02:47]}  h6 {[%clk 0:03:00]} 11. Be3 {[%clk 0:02:47]}  a6 {[%clk 0:03:00]} 12. Nf2 {[%clk 0:02:47]}  b5 {[%clk 0:03:00]} 13. h4 {[%clk 0:02:43]}  Rhb8 {[%clk 0:02:59]} 14. g4 {[%clk 0:02:43]}  b4 {[%clk 0:02:58]} 15. axb4 {[%clk 0:02:43]}  Bxb4 {[%clk 0:02:56]} 16. g5 {[%clk 0:02:43]}  hxg5 {[%clk 0:02:55]} 17. hxg5 {[%clk 0:02:44]}  Ne8 {[%clk 0:02:56]} 18. Nd5+ {[%clk 0:02:41]}  Bxd5 {[%clk 0:02:55]} 19. Rxd5 {[%clk 0:02:42]}  Bd6 {[%clk 0:02:49]} 20. Ra5 {[%clk 0:02:31]}  Bb4 {[%clk 0:02:42]} 21. Ra4 {[%clk 0:02:15]}  a5 {[%clk 0:02:41]} 22. c3 {[%clk 0:02:15]}  Bc5 {[%clk 0:02:39]} 23. Ng4 {[%clk 0:02:04]}  g6 {[%clk 0:02:32]} 24. Bc4 {[%clk 0:01:54]}  c6 {[%clk 0:02:14]} 25. Be2 {[%clk 0:01:12]}  Nd6 {[%clk 0:02:11]} 26. Kc2 {[%clk 0:01:09]}  Bxe3 {[%clk 0:02:08]} 27. Nxe3 {[%clk 0:01:09]}  Nc5 {[%clk 0:02:09]} 28. Raa1 {[%clk 0:01:07]}  a4 {[%clk 0:02:09]} 29. Nc4 {[%clk 0:01:05]}  Nxc4 {[%clk 0:02:06]} 30. Bxc4 {[%clk 0:01:06]}  Rh8 {[%clk 0:02:06]} 31. Ba2 {[%clk 0:00:46]}  Rad8 {[%clk 0:02:03]} 32. Raf1 {[%clk 0:00:43]}  Rb8 {[%clk 0:01:58]} 33. Bc4 {[%clk 0:00:42]}  Rbd8 {[%clk 0:01:55]} 34. Kb1 {[%clk 0:00:17]}  Nb3 {[%clk 0:01:49]} 35. Kc2 {[%clk 0:00:11]}  Rd2+ {[%clk 0:01:33]} 36. Kb1 {[%clk 0:00:11]}  Rhh2 {[%clk 0:01:29]} 37. Ka2 {[%clk 0:00:04]}  Rxb2+ {[%clk 0:01:27]} 38. Ka3 {[%clk 0:00:04]}  Ra2+ {[%clk 0:01:19]} 39. Kb4 {[%clk 0:00:04]}  Rhb2 {[%clk 0:01:19]} 40. Bxb3 {[%clk 0:00:02]}  Rxb3+ {[%clk 0:01:20]} 41. Kc4 {[%clk 0:00:02]}  Rc2 {[%clk 0:01:18]} 42. Rc1 {[%clk 0:00:02]}  Rbxc3+ {[%clk 0:01:18]} 0-1


[Site "https://www.chess.com"]

[Event "Titled Tuesday Blitz March 28 Late 2023"]
[White "Ozen, Bahadir"]
[Black "Drori, Saar"]
[WhiteFideId "6337058"]
[BlackFideId "2812444"]
[WhiteElo "2503"]
[BlackElo "2322"]
[Result "1-0"]
[Round "07"]
[TimeControl "180+2"]
[Date "2023.03.28"]
[WhiteClock "0:00:52"]
[BlackClock "0:00:02"]

1. h3 {[%clk 0:03:00]}  c5 {[%clk 0:03:00]} 2. c3 {[%clk 0:03:00]}  d5 {[%clk 0:02:59]} 3. d4 {[%clk 0:03:00]}  Nf6 {[%clk 0:02:54]} 4. Nf3 {[%clk 0:03:00]}  Nc6 {[%clk 0:02:53]} 5. Bf4 {[%clk 0:02:58]}  g6 {[%clk 0:02:49]} 6. e3 {[%clk 0:02:58]}  Bg7 {[%clk 0:02:49]} 7. Nbd2 {[%clk 0:02:58]}  O-O {[%clk 0:02:49]} 8. Be2 {[%clk 0:02:59]}  Qb6 {[%clk 0:02:46]} 9. Qb3 {[%clk 0:02:55]}  c4 {[%clk 0:02:39]} 10. Qa3 {[%clk 0:02:54]}  Bf5 {[%clk 0:02:20]} 11. O-O {[%clk 0:02:50]}  Ne4 {[%clk 0:02:11]} 12. Nxe4 {[%clk 0:02:49]}  Bxe4 {[%clk 0:02:12]} 13. Nd2 {[%clk 0:02:35]}  Bd3 {[%clk 0:01:38]} 14. Bxd3 {[%clk 0:02:26]}  cxd3 {[%clk 0:01:38]} 15. Rfd1 {[%clk 0:02:22]}  f6 {[%clk 0:01:37]} 16. c4 {[%clk 0:02:18]}  e5 {[%clk 0:01:16]} 17. Bg3 {[%clk 0:02:00]}  Nb4 {[%clk 0:00:50]} 18. Rac1 {[%clk 0:01:59]}  exd4 {[%clk 0:00:44]} 19. exd4 {[%clk 0:01:55]}  a5 {[%clk 0:00:35]} 20. cxd5 {[%clk 0:01:49]}  Qxd4 {[%clk 0:00:33]} 21. Bd6 {[%clk 0:01:27]}  Nc2 {[%clk 0:00:20]} 22. Nf3 {[%clk 0:01:18]}  Qxd5 {[%clk 0:00:12]} 23. Qxd3 {[%clk 0:01:18]}  Qxd3 {[%clk 0:00:09]} 24. Rxd3 {[%clk 0:01:19]}  Nb4 {[%clk 0:00:10]} 25. Bxb4 {[%clk 0:01:15]}  axb4 {[%clk 0:00:11]} 26. Rc7 {[%clk 0:01:15]}  Rxa2 {[%clk 0:00:07]} 27. Rxb7 {[%clk 0:01:11]}  Rxb2 {[%clk 0:00:06]} 28. Rdd7 {[%clk 0:01:11]}  Bh8 {[%clk 0:00:06]} 29. Rxh7 {[%clk 0:00:57]}  g5 {[%clk 0:00:03]} 30. g4 {[%clk 0:00:53]}  Re2 {[%clk 0:00:02]} 31. Nd4 {[%clk 0:00:52]}  Re4 {[%clk 0:00:02]} 32. Nf5 {[%clk 0:00:52]} 1-0


[Site "https://www.chess.com"]

[Event "Titled Tuesday Blitz March 28 Late 2023"]
[White "Papasimakopoulos, Alexandros"]
[Black "Freitag, Manfred"]
[WhiteFideId "4244125"]
[BlackFideId "1602004"]
[WhiteElo "2359"]
[BlackElo "2275"]
[Result "1-0"]
[Round "07"]
[TimeControl "180+2"]
[Date "2023.03.28"]
[WhiteClock "0:01:33"]
[BlackClock "0:01:28"]

1. d4 {[%clk 0:03:00]}  Nf6 {[%clk 0:02:59]} 2. c4 {[%clk 0:03:01]}  g6 {[%clk 0:03:00]} 3. Nc3 {[%clk 0:03:01]}  Bg7 {[%clk 0:03:00]} 4. e4 {[%clk 0:03:01]}  d6 {[%clk 0:03:01]} 5. f3 {[%clk 0:03:02]}  O-O {[%clk 0:03:02]} 6. Nge2 {[%clk 0:03:02]}  a6 {[%clk 0:03:01]} 7. Be3 {[%clk 0:03:02]}  Nbd7 {[%clk 0:03:01]} 8. Ng3 {[%clk 0:03:00]}  c5 {[%clk 0:03:00]} 9. Be2 {[%clk 0:03:00]}  b5 {[%clk 0:03:00]} 10. O-O {[%clk 0:02:58]}  h5 {[%clk 0:02:59]} 11. Qd2 {[%clk 0:02:49]}  h4 {[%clk 0:02:54]} 12. Nh1 {[%clk 0:02:49]}  b4 {[%clk 0:02:53]} 13. Nd5 {[%clk 0:02:49]}  Nxd5 {[%clk 0:02:51]} 14. cxd5 {[%clk 0:02:46]}  cxd4 {[%clk 0:02:51]} 15. Bxd4 {[%clk 0:02:46]}  Bxd4+ {[%clk 0:02:49]} 16. Qxd4 {[%clk 0:02:47]}  Qb6 {[%clk 0:02:47]} 17. Qxb6 {[%clk 0:02:46]}  Nxb6 {[%clk 0:02:48]} 18. Rfc1 {[%clk 0:02:44]}  Na4 {[%clk 0:02:41]} 19. Rab1 {[%clk 0:02:32]}  Nc5 {[%clk 0:02:40]} 20. Nf2 {[%clk 0:02:31]}  a5 {[%clk 0:02:40]} 21. Nd3 {[%clk 0:02:31]}  Ba6 {[%clk 0:02:40]} 22. Nxc5 {[%clk 0:02:30]}  Bxe2 {[%clk 0:02:40]} 23. Kf2 {[%clk 0:02:24]}  Bb5 {[%clk 0:02:38]} 24. Nb3 {[%clk 0:02:17]}  a4 {[%clk 0:02:37]} 25. Nd4 {[%clk 0:02:17]}  Rfb8 {[%clk 0:02:33]} 26. Nxb5 {[%clk 0:02:13]}  Rxb5 {[%clk 0:02:33]} 27. Rc7 {[%clk 0:02:13]}  Kf8 {[%clk 0:02:32]} 28. Rbc1 {[%clk 0:02:14]}  f5 {[%clk 0:02:24]} 29. Ke3 {[%clk 0:02:12]}  Kf7 {[%clk 0:02:19]} 30. Rd7 {[%clk 0:02:00]}  Kf6 {[%clk 0:02:16]} 31. Kd4 {[%clk 0:01:56]}  a3 {[%clk 0:01:49]} 32. b3 {[%clk 0:01:56]}  g5 {[%clk 0:01:43]} 33. Rc6 {[%clk 0:01:55]}  g4 {[%clk 0:01:40]} 34. fxg4 {[%clk 0:01:48]}  fxe4 {[%clk 0:01:39]} 35. g5+ {[%clk 0:01:44]}  Kxg5 {[%clk 0:01:36]} 36. Rxe7 {[%clk 0:01:44]}  Rf8 {[%clk 0:01:32]} 37. Rxd6 {[%clk 0:01:35]}  Rf2 {[%clk 0:01:32]} 38. Re5+ {[%clk 0:01:36]}  Kg4 {[%clk 0:01:29]} 39. Rg6+ {[%clk 0:01:35]}  Kf4 {[%clk 0:01:28]} 40. Rf6+ {[%clk 0:01:33]} 1-0


[Site "https://www.chess.com"]